bitfinex-derivatives/quotes_SOLF0:USTF0_20250221
["timestamp","ask_amount","ask_price","bid_price","bid_amount"]
[1740181145152,0.03846775,169.36,169.33,0.04042843]
[1740181146245,5.9054,169.42,169.33,0.04042843]
[1740181146446,5.4032,169.46,169.31,15.10015675]
[1740181146642,0.98266259,169.45,169.31,15.10015675]
[1740181146952,0.98266259,169.45,169.32,1.7155]
[1740181147352,0.04432882,169.4,169.37,0.04351268]
[1740181150054,5.95032882,169.4,169.37,0.04351268]
[1740181151459,5.9067,169.38,169.37,0.04351268]
[1740181152059,15.10015675,169.39,169.28,3.6563]
[1740181152253,16.86175675,169.39,169.28,3.6563]
[1740181152457,16.86175675,169.39,169.29,5.9097]
[1740181152659,15.10015675,169.36,169.28,1.8672]
[1740181153061,15.10015675,169.36,169.29,5.9097]
[1740181153258,0.04229171,169.34,169.3,0.04485072]
[1740181153862,5.9087,169.33,169.3,0.04485072]
[1740181154166,0.04229171,169.34,169.3,0.04485072]
[1740181155059,5.9086,169.33,169.3,0.04485072]
[1740181155858,5.9086,169.33,169.3,5.95435072]
[1740181157864,5.95049171,169.34,169.3,5.95435072]
[1740181158068,0.04229171,169.34,169.3,5.95435072]
[1740181158362,0.04229171,169.34,169.3,0.04485072]
[1740181159764,15.10015675,169.33,169.3,0.04485072]
[1740181160467,5.9091,169.31,169.3,0.04485072]
[1740181160665,5.9091,169.31,169.3,5.072e-05]
[1740181160869,3.5445,169.32,169.22,5.9121]
[1740181161168,15.10015675,169.3,169.22,5.9121]
[1740181161369,5.9112,169.26,169.22,5.9121]
[1740181161760,5.9112,169.26,169.2,5.404]
[1740181161965,0.04318377,169.26,169.23,5.9119]
[1740181162165,0.04318377,169.26,169.22,0.04442217]
[1740181162667,0.04318377,169.26,169.25,5.9112]
[1740181163264,0.04318377,169.26,169.22,0.04442217]
[1740181163764,5.9116,169.24,169.22,0.04442217]
[1740181163967,0.04318377,169.26,169.22,0.04442217]
[1740181164363,5.9119,169.23,169.22,0.04442217]
[1740181165867,0.04318377,169.26,169.22,0.04442217]
[1740181166066,5.9117,169.24,169.22,0.04442217]
[1740181166571,0.04318377,169.26,169.22,0.04442217]
[1740181166772,5.9119,169.23,169.22,0.04442217]
[1740181171877,5.9138,169.18,169.15,5.9146]
[1740181172078,15.10015675,169.21,169.08,5.3661]
[1740181172277,5.9144,169.16,169.13,5.9152]
[1740181172680,15.10015675,169.21,169.08,5.3661]
[1740181173079,0.04311421,169.16,169.13,0.0450966]
[1740181173880,0.04311421,169.16,169.15,5.9147]
[1740181179477,0.04311421,169.16,169.14,5.915]
[1740181180384,0.04311421,169.16,169.13,0.0450966]
[1740181180586,5.95751421,169.16,169.13,5.9602966]
[1740181181984,0.04311421,169.16,169.14,5.9149]
[1740181182476,0.04311421,169.16,169.13,0.0450966]
[1740181182477,0.04311421,169.16,168.96,55.15177012]
[1740181182681,15.10015675,169.12,168.98,3.5878]
[1740181182883,1.8142,169.11,168.98,3.5878]
[1740181183085,5.9174,169.08,169.02,5.919]
[1740181183782,0.03976811,169.07,169.03,0.03961025]
[1740181185287,5.95726811,169.07,169.03,0.03961025]
[1740181185989,0.03976811,169.07,169.03,0.03961025]
[1740181188188,5.95756811,169.07,169.03,0.03961025]
[1740181188389,0.03976811,169.07,169.03,0.03961025]
[1740181189291,5.9181,169.06,169.03,0.03961025]
[1740181189481,0.03976811,169.07,169.03,0.03961025]
[1740181189898,0.03976811,169.07,169.04,5.9185]
[1740181190394,0.03976811,169.07,169.06,5.9178]
[1740181191392,5.9159,169.12,169.08,5.9171]
[1740181191593,5.9159,169.12,168.98,3.5878]
[1740181191594,3.6692,169.16,169.02,15.10015675]
[1740181192492,0.04256415,169.11,169.09,5.9165]
[1740181193792,0.04256415,169.11,169.08,0.04140679]
[1740181194600,5.9168,169.09,169.08,0.04140679]
[1740181202606,5.9184,169.05,168.99,1.7358]
[1740181203407,5.9184,169.05,169.02,5.9192]
[1740181203605,5.96026222,169.05,169.02,5.95761895]
[1740181205615,5.96026222,169.05,169.02,5.95751895]
[1740181206211,0.04186222,169.05,169.02,0.03841895]
[1740181206610,15.10015675,169.03,169.02,1.895e-05]
[1740181206915,5.9216,168.96,168.93,32.14930347]
[1740181207410,5.9217,168.95,168.93,32.14930347]
[1740181208119,5.9217,168.95,168.93,8.10124737]
[1740181209316,0.04039128,168.96,168.93,8.10124737]
[1740181209515,5.9217,168.95,168.93,8.10124737]
[1740181209717,0.04039128,168.96,168.93,8.10124737]
[1740181210016,5.9217,168.95,168.93,8.10124737]
[1740181210822,0.04039128,168.96,168.94,5.9219]
[1740181214119,0.04039128,168.96,168.95,5.9217]
[1740181214315,9.128e-05,168.96,168.95,5.9217]
[1740181223529,9.128e-05,168.96,168.95,21.02185675]
[1740181225029,9.128e-05,168.96,168.95,26.69816072]
[1740181228027,3.52,169.04,169.03,5.9189]
[1740181228426,3.5347,169.09,168.98,15.10015675]
[1740181229132,3.5347,169.09,168.99,5.67630397]
[1740181229330,15.10015675,169.14,168.99,5.67630397]
[1740181229331,1.7377,169.14,169.02,0.03825201]
[1740181229527,0.04480874,169.06,169.01,15.10015675]
[1740181229726,3.4824,169.14,169.08,5.9169]
[1740181229921,0.04541585,169.13,169.08,5.9169]
[1740181230126,5.916,169.12,169.09,0.04378481]
[1740181231026,0.04541585,169.13,169.09,0.04378481]
[1740181232028,5.9157,169.12,169.09,5.96038481]
[1740181234432,0.04541585,169.13,169.09,0.04378481]
[1740181234637,5.9164,169.1,169.09,0.04378481]
[1740181246139,9.68302861,169.12,169.09,0.04378481]
[1740181246333,5.9164,169.1,169.09,0.04378481]
[1740181247436,0.04541585,169.13,169.09,0.04378481]
[1740181248336,5.96091585,169.13,169.1,5.9164]
[1740181248532,5.96091585,169.13,169.09,0.04378481]
[1740181249237,5.96091585,169.13,169.11,5.9161]
[1740181254244,5.9159,169.12,169.09,0.04378481]
[1740181255546,5.9159,169.12,169.1,5.9164]
[1740181257047,5.96101585,169.13,169.1,5.9164]
[1740181257548,0.04541585,169.13,169.1,5.9164]
[1740181257750,5.9158,169.12,169.1,5.9164]
[1740181258047,5.9158,169.12,169.09,5.96038481]
[1740181259445,0.04541585,169.13,169.09,5.96038481]
[1740181259646,5.9162,169.11,169.09,5.96038481]
[1740181260146,5.9159,169.12,169.09,5.96038481]
[1740181260446,0.04541585,169.13,169.09,0.04378481]
[1740181261649,0.04541585,169.13,169.11,5.9159]
[1740181263953,0.04541585,169.13,169.1,5.9164]
[1740181265949,0.04541585,169.13,169.12,5.9157]
[1740181267053,0.04541585,169.13,169.11,5.916]
[1740181270853,0.04541585,169.13,169.12,5.9157]
[1740181271551,9.11,169.18,169.1,15.12772861]
[1740181271752,9.11,169.18,169.12,9.68302861]
[1740181272049,9.11,169.18,169.17,5.914]
[1740181272448,5.9117,169.24,169.16,9.68302861]
[1740181272646,0.04074967,169.19,169.16,9.7255181]
[1740181273650,175.73633591,169.28,169.18,9.68302861]
[1740181273651,5.9106,169.27,169.18,9.68302861]
[1740181274356,168.4823073,169.28,169.21,9.68302861]
[1740181274556,168.4823073,169.28,169.17,3.4794]
[1740181274557,162.5721073,169.28,169.2,5.9126]
[1740181274754,0.04337221,169.26,169.23,0.03935586]
[1740181275448,15.59462861,169.24,169.23,5.586e-05]
[1740181275650,15.59462861,169.24,169.15,5.9146]
[1740181275651,9.68302861,169.24,169.15,5.9146]
[1740181275856,9.68302861,169.2,169.14,5.68132836]
[1740181276451,5.9135,169.19,169.14,5.9149]
[1740181276854,5.9143,169.17,169.15,0.03893683]
[1740181277656,0.0440755,169.18,169.15,0.03893683]
[1740181277853,5.9578755,169.18,169.15,0.03893683]
[1740181278948,0.0440755,169.18,169.15,0.03893683]
[1740181279148,0.0440755,169.18,169.15,5.95353683]
[1740181279657,0.0440755,169.18,169.17,5.914]
[1740181280456,0.0440755,169.18,169.15,0.03893683]
[1740181280655,0.0440755,169.18,169.16,5.9143]
[1740181281256,0.0440755,169.18,169.17,5.914]
[1740181281660,5.9122,169.23,169.19,5.9132]
[1740181282352,5.9122,169.23,169.12,143.38377406]
[1740181282353,3.6666,169.26,169.12,143.38377406]
[1740181282554,22.97477406,169.31,169.15,15.11477406]
[1740181282754,0.04504616,169.21,169.17,0.04084854]
[1740181282953,22.97477406,169.31,169.2,5.913]
[1740181283156,0.03816568,169.21,169.2,5.913]
[1740181283357,22.97477406,169.31,169.2,5.913]
[1740181283560,0.04423688,169.22,169.19,5.95249319]
[1740181283755,22.97477406,169.31,169.15,15.11477406]
[1740181283954,22.97477406,169.31,169.19,0.03887961]
[1740181283955,0.04114242,169.22,169.19,0.03887961]
[1740181284158,5.9121,169.23,169.15,15.11477406]
[1740181284354,0.04102436,169.22,169.19,0.04416613]
[1740181285457,0.04102436,169.22,169.2,5.9129]
[1740181287656,5.95332436,169.22,169.19,5.95736613]
[1740181288162,0.04102436,169.22,169.19,0.04416613]
[1740181288859,5.9129,169.21,169.19,0.04416613]
[1740181289063,0.04102436,169.22,169.19,0.04416613]
[1740181289266,15.15579842,169.22,169.19,0.04416613]
[1740181289563,5.913,169.2,169.19,0.04416613]
[1740181290565,15.15579842,169.22,169.12,128.269]
[1740181290755,5.9144,169.16,169.12,126.54]
[1740181290958,5.9144,169.16,169.11,7.6506]
[1740181291158,5.9144,169.16,169.11,1.7346]
[1740181291464,5.9144,169.16,169.12,5.9157]
[1740181291763,5.95863116,169.16,169.12,0.04481961]
[1740181291957,0.04423116,169.16,169.12,0.04481961]
[1740181292768,0.04423116,169.16,169.13,5.9151]
[1740181294362,0.04423116,169.16,169.14,5.915]
[1740181294558,0.04423116,169.16,169.12,0.04481961]
[1740181295453,5.95883116,169.16,169.12,5.96051961]
[1740181296159,0.04423116,169.16,169.15,5.9147]
[1740181297361,1.746,169.25,169.12,15.15959367]
[1740181297665,1.746,169.25,169.15,15.11477406]
[1740181298567,0.04510345,169.22,169.18,0.03934155]
[1740181299660,0.04510345,169.22,169.2,5.9129]
[1740181301260,0.04510345,169.22,169.21,5.9126]
[1740181306766,5.95740345,169.22,169.19,5.9132]
[1740181306968,0.04510345,169.22,169.18,0.03934155]
[1740181307969,0.04510345,169.22,169.21,5.9126]
[1740181311669,3.45e-06,169.22,169.21,5.9126]
[1740181323380,3.45e-06,169.22,169.2,5.9128]
[1740181323585,3.45e-06,169.22,169.18,0.03934155]
[1740181323783,5.913,169.2,169.18,0.03934155]
[1740181324085,3.45e-06,169.22,169.18,0.03934155]
[1740181324482,5.9127,169.21,169.18,5.95274155]
[1740181325283,5.9127,169.21,169.19,5.9133]
[1740181326680,5.9127,169.21,169.18,5.95284155]
[1740181327283,5.91230345,169.22,169.19,5.913]
[1740181327488,3.45e-06,169.22,169.19,5.913]
[1740181328488,5.9126,169.21,169.19,5.913]
[1740181328985,3.45e-06,169.22,169.18,0.03934155]
[1740181329186,5.913,169.2,169.18,0.03934155]
[1740181330883,3.45e-06,169.22,169.18,0.03934155]
[1740181331086,5.9133,169.19,169.18,0.03934155]
[1740181331284,15.11477406,169.2,169.09,4.01475345]
[1740181331484,15.11477406,169.2,169.08,3.7117]
[1740181331687,15.11477406,169.2,169.13,5.9153]
[1740181332288,1.8699,169.22,169.1,16.95537406]
[1740181332493,0.04525329,169.18,169.15,0.04423329]
[1740181332784,0.04525329,169.18,169.16,5.9141]
[1740181332987,0.04525329,169.18,169.15,0.04423329]
[1740181333381,5.95895329,169.18,169.16,5.9141]
[1740181333578,0.04525329,169.18,169.15,0.04423329]
[1740181334484,5.9144,169.16,169.15,0.04423329]
[1740181336490,0.04525329,169.18,169.15,0.04423329]
[1740181336692,5.9143,169.17,169.15,0.04423329]
[1740181338387,5.9144,169.16,169.15,0.04423329]
[1740181338789,0.04525329,169.18,169.15,0.04423329]
[1740181339093,5.9143,169.17,169.15,0.04423329]
[1740181339390,0.04525329,169.18,169.15,0.04423329]
[1740181339589,5.914,169.17,169.15,0.04423329]
[1740181341191,0.04525329,169.18,169.15,0.04423329]
[1740181342190,5.9141,169.17,169.15,0.04423329]
[1740181342392,0.04525329,169.18,169.15,0.04423329]
[1740181342588,5.95925329,169.18,169.15,5.95873329]
[1740181345497,5.914,169.17,169.15,5.95873329]
[1740181345688,0.04525329,169.18,169.16,5.9143]
[1740181345892,0.04525329,169.18,169.15,0.04423329]
[1740181346387,5.95915329,169.18,169.15,5.95883329]
[1740181347595,5.95915329,169.18,169.16,5.9143]
[1740181348693,0.04525329,169.18,169.15,0.04423329]
[1740181348895,0.04525329,169.18,169.17,5.914]
[1740181349296,7.51,169.28,169.16,9.67375865]
[1740181349494,7.51,169.28,169.21,9.67375865]
[1740181349994,164.4566073,169.33,169.26,5.9109]
[1740181350390,164.4566073,169.33,169.29,5.9098]
[1740181350794,164.49728639,169.33,169.29,5.9493529]
[1740181351098,1.92517909,169.33,169.29,5.9493529]
[1740181351901,1.92517909,169.33,169.29,0.0395529]
[1740181352302,0.04067909,169.33,169.29,0.0395529]
[1740181352710,0.04067909,169.33,169.31,5.909]
[1740181352901,0.04067909,169.33,169.29,0.0395529]
[1740181354001,0.04067909,169.33,169.31,5.9088]
[1740181354202,0.04067909,169.33,169.29,0.0395529]
[1740181354603,0.04067909,169.33,169.3,5.9094]
[1740181355201,0.04067909,169.33,169.31,5.909]
[1740181356304,0.04067909,169.33,169.29,0.0395529]
[1740181356305,0.04067909,169.33,169.32,5.9088]
[1740181356499,0.04067909,169.33,169.29,0.0395529]
[1740181357395,0.04067909,169.33,169.31,15.08614864]
[1740181357796,0.04067909,169.33,169.32,5.9088]
[1740181362604,0.04067909,169.33,169.3,5.9094]
[1740181362804,0.04067909,169.33,169.29,0.0395529]
[1740181364209,0.04067909,169.33,169.32,5.9088]
[1740181370014,0.04067909,169.33,169.31,5.909]
[1740181370215,7.909e-05,169.33,169.3,1.8213]
[1740181370621,7.909e-05,169.33,169.32,5.9088]
[1740181374021,3.51,169.41,169.31,18.63744864]
[1740181374217,3.51,169.41,169.4,5.906]
[1740181374531,197.5759,169.5,169.4,5.906]
[1740181374715,5.9049,169.43,169.4,5.906]
[1740181375325,0.0410893,169.43,169.4,0.04218847]
[1740181375524,0.0410893,169.43,169.41,5.9055]
[1740181375724,0.0410893,169.43,169.4,0.04218847]
[1740181377227,5.9055,169.42,169.4,0.04218847]
[1740181378327,5.9461893,169.43,169.4,0.04218847]
[1740181378833,5.9461893,169.43,169.4,5.94808847]
[1740181379030,0.0410893,169.43,169.4,0.04218847]
[1740181380229,0.0410893,169.43,169.42,5.9053]
[1740181380529,0.0410893,169.43,169.4,0.04218847]
[1740181380924,5.9460893,169.43,169.4,5.94798847]
[1740181381120,0.0410893,169.43,169.4,0.04218847]
[1740181381322,0.0410893,169.43,169.4,5.94808847]
[1740181381525,5.9461893,169.43,169.4,5.94808847]
[1740181382530,5.9055,169.42,169.4,0.04218847]
[1740181382827,0.0410893,169.43,169.4,0.04218847]
[1740181383228,5.9055,169.42,169.4,0.04218847]
[1740181383826,0.0410893,169.43,169.4,0.04218847]
[1740181384029,5.9056,169.41,169.4,0.04218847]
[1740181384929,1.8734,169.42,169.34,5.9079]
[1740181386036,5.9069,169.38,169.36,0.03897768]
[1740181386631,0.04260455,169.4,169.36,0.03897768]
[1740181386833,5.9066,169.39,169.36,0.03897768]
[1740181387021,5.9066,169.39,169.36,5.94627768]
[1740181387634,5.9067,169.38,169.36,5.94627768]
[1740181387834,5.9067,169.38,169.36,0.03897768]
[1740181391231,0.04260455,169.4,169.36,0.03897768]
[1740181391535,5.907,169.37,169.36,0.03897768]
[1740181400544,5.9087,169.33,169.26,3.5882]
[1740181400743,9.65463597,169.37,169.26,3.5882]
[1740181400943,1.8529,169.36,169.26,3.5882]
[1740181401144,5.9082,169.34,169.27,5.69882448]
[1740181401341,1.8529,169.36,169.27,5.69882448]
[1740181401844,0.04384338,169.33,169.3,0.04126831]
[1740181402046,0.04384338,169.33,169.32,5.9087]
[1740181404950,0.04384338,169.33,169.3,0.04126831]
[1740181405452,0.04384338,169.33,169.32,5.9088]
[1740181407853,0.04384338,169.33,169.31,5.9091]
[1740181409756,0.04384338,169.33,169.3,0.04126831]
[1740181409955,0.04384338,169.33,169.31,5.9091]
[1740181411153,0.04384338,169.33,169.32,5.9088]
[1740181413153,5.9066,169.39,169.36,5.9071]
[1740181414253,5.94712811,169.39,169.36,5.9513705]
[1740181414951,5.9067,169.38,169.36,0.0442705]
[1740181415156,0.04052811,169.39,169.36,0.0442705]
[1740181415754,5.94692811,169.39,169.36,5.9513705]
[1740181416152,0.04052811,169.39,169.36,0.0442705]
[1740181416357,0.04052811,169.39,169.38,5.9067]
[1740181436566,0.04052811,169.39,169.37,5.9069]
[1740181436767,0.04052811,169.39,169.36,0.0442705]
[1740181436972,9.69516408,169.39,169.36,0.0442705]
[1740181437166,15.56163597,169.37,169.36,0.0442705]
[1740181439275,9.65463597,169.37,169.36,0.0442705]
[1740181440371,15.56163597,169.37,169.36,0.0442705]
[1740181440776,9.65463597,169.37,169.36,0.0442705]
[1740181442976,15.56163597,169.37,169.36,0.0442705]
[1740181456186,9.65463597,169.37,169.36,0.0442705]
[1740181457382,15.56163597,169.37,169.36,0.0442705]
[1740181457583,0.04052811,169.39,169.38,5.9067]
[1740181458281,0.04052811,169.39,169.36,0.0442705]
[1740181458483,0.04052811,169.39,169.26,9.65463597]
[1740181458688,9.65463597,169.37,169.27,4.00500976]
[1740181458881,9.65463597,169.37,169.29,5.9097]
[1740181459080,5.9082,169.34,169.28,5.69652612]
[1740181459286,9.65463597,169.37,169.28,5.69652612]
[1740181459485,9.65463597,169.37,169.26,9.65463597]
[1740181459700,5.9096,169.3,169.24,8.10124737]
[1740181459888,5.9096,169.3,169.25,5.9112]
[1740181460183,0.04426361,169.29,169.25,5.95292995]
[1740181460378,0.04426361,169.29,169.25,0.04172995]
[1740181460886,9.65463597,169.28,169.25,0.04172995]
[1740181461785,5.9109,169.26,169.25,0.04172995]
[1740181463784,5.9116,169.24,169.23,8.10124737]
[1740181463986,15.56623597,169.24,169.18,5.9136]
[1740181464591,5.912,169.23,169.18,5.9136]
[1740181464988,0.03947736,169.22,169.19,0.04520606]
[1740181465691,0.03947736,169.22,169.19,5.95850606]
[1740181466491,0.03947736,169.22,169.21,5.9126]
[1740181466990,0.03947736,169.22,169.19,0.04520606]
[1740181469393,5.9127,169.21,169.19,0.04520606]
[1740181470891,5.95177736,169.22,169.19,5.95850606]
[1740181471094,0.03947736,169.22,169.19,0.04520606]
[1740181471295,0.03947736,169.22,169.21,5.9126]
[1740181471588,3.7503,169.3,169.21,9.65463597]
[1740181471793,9.66,169.3,169.26,5.9106]
[1740181471990,9.66,169.3,169.21,9.65463597]
[1740181472193,3.7503,169.3,169.21,11.45353597]
[1740181472392,3.7503,169.3,169.21,1.7989]
[1740181472892,0.04113892,169.27,169.26,5.9108]
[1740181473096,201.84,169.34,169.24,9.65463597]
[1740181473395,0.04239761,169.28,169.25,0.04254655]
[1740181474498,0.04239761,169.28,169.27,5.9105]
[1740181476999,0.04239761,169.28,169.26,5.9108]
[1740181477197,0.04239761,169.28,169.25,0.04254655]
[1740181478701,0.04239761,169.28,169.25,5.95354655]
[1740181478906,0.04239761,169.28,169.25,0.04254655]
[1740181480004,0.04239761,169.28,169.25,5.95364655]
[1740181481401,0.04239761,169.28,169.26,5.9108]
[1740181481806,0.04239761,169.28,169.25,0.04254655]
[1740181482006,0.04239761,169.28,169.27,5.9105]
[1740181491213,6.45,169.33,169.32,5.9088]
[1740181491622,5.9071,169.37,169.24,15.08416256]
[1740181491830,5.9071,169.37,169.34,5.908]
[1740181492321,5.9482979,169.37,169.34,5.94611473]
[1740181492724,0.0411979,169.37,169.34,5.94611473]
[1740181492920,5.9074,169.36,169.34,5.94611473]
[1740181494019,0.0411979,169.37,169.34,0.03811473]
[1740181494223,5.9077,169.35,169.34,0.03811473]
[1740181496627,15.56306533,169.35,169.34,0.03811473]
[1740181499125,9.65536533,169.35,169.34,0.03811473]
[1740181499526,0.0411979,169.37,169.34,0.03811473]
[1740181499720,0.0411979,169.37,169.36,5.9074]
[1740181500724,5.9481979,169.37,169.34,0.03811473]
[1740181501029,0.0411979,169.37,169.34,0.03811473]
[1740181501626,5.9087,169.33,169.29,5.9096]
[1740181501825,15.07926543,169.34,169.28,1.8285]
[1740181502423,15.07926543,169.34,169.24,5.62410152]
[1740181502732,15.07926543,169.31,169.24,5.62410152]
[1740181502930,15.11899088,169.31,169.27,0.04485334]
[1740181504230,5.9098,169.29,169.27,0.04485334]
[1740181504432,15.11899088,169.31,169.27,0.04485334]
[1740181504933,5.9102,169.28,169.27,0.04485334]
[1740181505323,5.9114,169.25,169.21,5.9123]
[1740181505531,15.07926543,169.28,169.18,3.5646]
[1740181505936,15.07926543,169.28,169.14,98.60827317]
[1740181506231,15.07926543,169.28,169.14,102.12247317]
[1740181506431,5.95278459,169.24,169.2,0.04190121]
[1740181507136,0.04098459,169.24,169.2,0.04190121]
[1740181508636,0.04098459,169.24,169.2,5.95480121]
[1740181508836,0.04098459,169.24,169.2,0.04190121]
[1740181509337,5.9126,169.21,169.2,0.04190121]
[1740181509725,1.77028459,169.24,169.2,0.04190121]
[1740181510535,3.51008459,169.24,169.13,1.882]
[1740181510736,15.07926543,169.22,169.13,1.882]
[1740181510935,15.07926543,169.22,169.15,5.9146]
[1740181511339,5.9139,169.18,169.15,5.9146]
[1740181511735,5.95883487,169.18,169.15,5.95631146]
[1740181512836,0.04493487,169.18,169.15,0.04171146]
[1740181513438,5.95883487,169.18,169.15,0.04171146]
[1740181513638,0.04493487,169.18,169.15,0.04171146]
[1740181514741,5.914,169.17,169.15,0.04171146]
[1740181514943,0.04493487,169.18,169.15,0.04171146]
[1740181516339,5.9142,169.17,169.15,0.04171146]
[1740181516540,0.04493487,169.18,169.15,0.04171146]
[1740181517543,0.04493487,169.18,169.06,1.8394]
[1740181517544,15.07926543,169.16,169.06,1.8394]
[1740181517735,15.07926543,169.16,169.02,3.6098]
[1740181517941,5.9166,169.1,169.07,5.9174]
[1740181518246,15.07926543,169.13,169.02,5.4492]
[1740181518445,5.9158,169.12,169.09,5.9166]
[1740181518836,5.95947908,169.12,169.09,5.9166]
[1740181519051,5.9165,169.1,169.07,5.9173]
[1740181519345,0.04367908,169.12,169.06,0.04298918]
[1740181520145,0.04367908,169.12,169.09,5.9168]
[1740181520644,5.95947908,169.12,169.09,5.9168]
[1740181521345,0.04367908,169.12,169.06,0.04298918]
[1740181521547,0.04367908,169.12,169.1,5.9164]
[1740181523644,0.04367908,169.12,169.11,5.9161]
[1740181524244,0.04367908,169.12,169.1,0.04226392]
[1740181526349,0.04367908,169.12,169.1,5.95846392]
[1740181526848,0.04367908,169.12,169.1,0.04226392]
[1740181527350,0.04367908,169.12,169.11,5.9161]
[1740181531355,5.95947908,169.12,169.1,0.04226392]
[1740181532050,0.04367908,169.12,169.1,0.04226392]
[1740181532251,0.04367908,169.12,169.1,5.95866392]
[1740181535954,0.04367908,169.12,169.11,5.9161]
[1740181547360,0.04367908,169.12,169.1,0.04226392]
[1740181547560,9.67548277,169.11,169.1,5.95856392]
[1740181547755,9.67548277,169.11,169.1,0.04226392]
[1740181547960,9.67548277,169.11,169.02,27.7346561]
[1740181548265,9.67548277,169.08,169.03,32.14930347]
[1740181548462,9.67548277,169.08,169.06,5.9176]
[1740181548660,9.67548277,169.1,169.03,32.14930347]
[1740181549166,9.67548277,169.1,169.09,5.9168]
[1740181549355,0.04405479,169.08,169.05,0.04191541]
[1740181549764,0.04405479,169.08,169.07,5.9175]
[1740181551071,9.67548277,169.16,169.05,9.71739818]
[1740181551275,9.67548277,169.18,169.07,9.67548277]
[1740181551474,15.58938277,169.18,169.08,1.7536]
[1740181551671,9.67548277,169.18,169.16,5.9141]
[1740181552267,9.67548277,169.18,169.09,1.8087]
[1740181552268,9.67548277,169.18,169.15,0.04083682]
[1740181552473,9.67548277,169.16,169.15,0.04083682]
[1740181553271,229.52,169.14,168.98,24.0480561]
[1740181553475,229.52,169.14,168.96,81.57684649]
[1740181553476,9.67548277,169.0,168.96,81.57684649]
[1740181553672,9.67548277,169.0,168.96,7.351e-05]
[1740181553673,15.59648277,168.97,168.96,7.351e-05]
[1740181553978,9.67548277,168.97,168.96,171.12951092]
[1740181554170,15.59648277,168.97,168.96,162.16631092]
[1740181554573,15.59648277,168.97,168.96,133.62707993]
[1740181554574,21.08523704,168.97,168.96,133.62707993]
[1740181554774,19.37565466,168.97,168.96,118.81226615]
[1740181555079,4.21141762,168.97,168.96,118.81226615]
[1740181556079,0.04335798,168.98,168.96,118.81226615]
[1740181556676,0.04335798,168.98,168.95,0.04109471]
[1740181559180,0.04335798,168.98,168.96,5.921]
[1740181559674,0.04335798,168.98,168.96,5.9214]
[1740181559980,0.04335798,168.98,168.95,0.04109471]
[1740181560980,5.96405798,168.98,168.95,0.04109471]
[1740181561480,15.20759502,168.98,168.95,0.04109471]
[1740181561680,5.9214,168.96,168.95,0.04109471]
[1740181562174,15.20759502,168.98,168.95,0.04109471]
[1740181562476,0.04335798,168.98,168.95,0.04109471]
[1740181567182,5.9213,168.97,168.95,0.00010525]
[1740181567382,15.20759502,168.98,168.95,0.00010525]
[1740181568785,15.20759502,168.98,168.83,132.80639865]
[1740181568986,15.16423704,168.98,168.83,132.80639865]
[1740181569584,5.9212,168.97,168.93,5.9221]
[1740181569886,15.16423704,168.98,168.93,5.9221]
[1740181570087,0.04041054,168.97,168.93,5.96494695]
[1740181570388,5.9215,168.96,168.93,5.96494695]
[1740181572484,5.96151054,168.97,168.93,5.96494695]
[1740181573586,5.96151054,168.97,168.94,5.922]
[1740181573996,0.04041054,168.97,168.93,0.04284695]
[1740181574389,0.04041054,168.97,168.84,5.4251]
[1740181574588,5.9211,168.97,168.84,5.4251]
[1740181574791,5.9211,168.97,168.93,5.9222]
[1740181575093,5.9211,168.97,168.84,5.4251]
[1740181575589,0.04482265,168.92,168.89,0.03826658]
[1740181576290,2.265e-05,168.92,168.91,5.9231]
[1740181579695,356.5721073,169.03,169.01,5.9194]
[1740181580193,356.5721073,169.03,168.92,15.16423704]
[1740181580394,162.5721073,169.03,169.02,5.9192]
[1740181581595,0.03724062,169.04,169.01,0.0411494]
[1740181582195,0.03724062,169.04,169.02,5.919]
[1740181583293,0.03724062,169.04,169.02,5.9192]
[1740181583491,0.03724062,169.04,169.01,0.0411494]
[1740181583893,0.03724062,169.04,169.02,5.919]
[1740181584695,0.03724062,169.04,169.01,0.0411494]
[1740181584896,0.03724062,169.04,169.03,5.9189]
[1740181596104,15.20147766,169.04,168.91,132.0675]
[1740181596300,162.5721073,169.06,168.98,15.16423704]
[1740181596495,162.5721073,169.06,168.99,5.2573]
[1740181596901,162.5721073,169.05,168.99,5.2573]
[1740181597201,162.5721073,169.05,169.04,5.9185]
[1740181599405,0.0380433,169.06,169.05,5.9182]
[1740181601212,0.0380433,169.06,169.04,0.04418796]
[1740181602108,0.0380433,169.06,169.05,5.9182]
[1740181602704,0.0380433,169.06,169.04,5.96258796]
[1740181603508,12.09536865,169.06,169.04,5.96258796]
[1740181603806,27.25960569,169.06,168.9,11.8468]